[Event "CCT Final-RR 2024"]
[Site "Oslo"]
[Date "2024.12.18"]
[Round "6"]
[White "Keymer, Vincent"]
[Black "Nepomniachtchi, Ian"]
[Result "0-1"]
[ECO "D05"]
[WhiteElo "2733"]
[BlackElo "2755"]
[Annotator "TA"]
[PlyCount "66"]
[EventDate "2024.12.11"]
[EventType "tourn"]
[EventCountry "NOR"]
[SourceTitle "playchess.com"]
[Source "ChessBase"]
[SourceQuality "1"]
[TimeControl "600+2"]

{[%evp 15,66,11,14,0,11,0,0,0,0,0,0,-12,-9,-18,0,-12,-8,-14,0,0,12,0,0,9,32,-16,44,16,9,10,9,11,28,0,0,0,13,0,0,-27,22,-627,-622,-718,-716,-1295,-1262,-1220,-596,-786,-515,-1068,-1056]} 1. d4 {[%emt 0:00:06]} Nf6 {[%emt 0:02:43]} 2. Nf3 {[%emt 0:00:03]} d5 {[%emt 0:00:03]} 3. e3 {[%emt 0:00:03]} e6 {[%emt 0:00:04]} 4. Nbd2 {[%emt 0:00:05]} b6 {[%emt 0:00:06]} 5. b3 {[%emt 0:00:03]} Bb7 {[%emt 0:00:03]} 6. Bb2 {[%emt 0:00:03]} Be7 {[%emt 0:00:04]} 7. Bd3 {[%emt 0:00:06]} O-O {[%emt 0:00:05]} 8. O-O {[%emt 0:00:04]} Nbd7 {[%emt 0:00:03]} 9. a4 {[%emt 0:00:19]} c5 {[%emt 0:00:14]} 10. Qe2 {[%emt 0:00:09]} Ne4 {[%emt 0:00:08]} 11. Rfd1 {[%emt 0:00:18]} Rc8 {[%emt 0:00:13]} 12. c4 {[%emt 0:00:38]} cxd4 {[%emt 0:00:11]} 13. exd4 {[%emt 0:00:13]} Nxd2 {[%emt 0:00:09]} 14. Rxd2 {[%emt 0:00:04]} Qc7 {[%emt 0:00:17]} 15. Qe3 {[%emt 0:00:22]} Rfd8 {[%emt 0:00:14]} 16. Rc2 {[%emt 0:00:07]} (16. a5 {looks sharper.} dxc4 17. bxc4 bxa5 18. Ng5) 16... Qb8 {[%emt 0:00:07]} 17. h3 {[%emt 0:00:07]} Bf6 {[%emt 0:00:09]} 18. a5 {[%emt 0:00:53]} dxc4 {[%emt 0:00:39]} 19. bxc4 {[%emt 0:00:03]} Nf8 {[%emt 0:00:07]} 20. Ng5 {[%emt 0:00:23]} (20. Ne5 $14) 20... Ng6 {[%emt 0:00:13]} (20... b5 $11 21. a6 (21. cxb5 Rxc2 22. Bxc2 h6 $11) 21... Ba8) 21. axb6 {[%emt 0:00:28]} axb6 {[%emt 0:00:03]} 22. Ne4 {[%emt 0:00:03]} Bxe4 {[%emt 0:00:04]} 23. Bxe4 {[%emt 0:00:06]} Qd6 {[%emt 0:00:11][%cal Rf6d4]} 24. Rd1 {[%emt 0:00:03]} Qb4 {[%emt 0:00:04]} 25. Bd3 {[%emt 0:00:15]} Ne7 {[%emt 0:00:09]} 26. Bc3 {[%emt 0:00:17] This pair of bishops is nice.} Qa4 {[%emt 0:00:10]} 27. g4 {[%emt 0:00:45] Prevents Nf5} Rxc4 {[%emt 0:00:29]} (27... g6 {feels stronger.}) 28. Qe4 $2 {[%emt 0:00:42][%mdl 8192]} (28. Ra1 $11 Qc6 (28... Qb3 29. g5 $16) 29. Bxc4 Qxc4 30. Qg3) 28... Rxc3 $19 {[%emt 0:00:03]} 29. Qxh7+ {[%emt 0:00:08]} Kf8 {[%emt 0:00:03] and ...Ng6 would now be decisive} 30. Rxc3 {[%emt 0:00:15]} Qxd1+ {[%emt 0:00:04]} 31. Kg2 {[%emt 0:00:02]} Qd2 {[%emt 0:00:11]} 32. Rc7 {[%emt 0:00:30] Hoping for Qh8+.} Qh6 {[%emt 0:00:04]} (32... Rxd4 33. Qh8+ Ng8 34. Bh7 $15) 33. Qe4 {[%emt 0:00:03]} (33. Qxh6 $142 gxh6 34. Bh7) 33... Nd5 {[%emt 0:00:07]} (33... Rxd4 $2 {is the wrong capture.} 34. Qa8+ $18) 0-1

[Event "CCT Final-RR 2024"]
[Site "Oslo"]
[Date "2024.12.18"]
[Round "6"]
[White "Vachier-Lagrave, Maxime"]
[Black "Firouzja, Alireza"]
[Result "1/2-1/2"]
[ECO "C42"]
[WhiteElo "2731"]
[BlackElo "2763"]
[Annotator "TA"]
[PlyCount "143"]
[EventDate "2024.12.11"]
[EventType "tourn"]
[EventCountry "NOR"]
[SourceTitle "playchess.com"]
[Source "ChessBase"]
[SourceQuality "1"]
[TimeControl "600+2"]

{[%evp 54,143,108,109,106,123,127,102,136,125,121,123,116,126,121,39,52,40,70,71,66,0,0,0,0,0,0,0,0,0,0,0,0,0,0,0,0,0,0,0,0,0,0,0,0,0,8,0,0,0,8,0,0,0,0,0,0,0,8,8,8,0,0,0,0,0,0,0,0,0,0,0,0,0,0,0,0,0,0,0,0,0,0,0,0,0,0,0,0,0,0,0]} 1. e4 {[%emt 0:00:01]} e5 {[%emt 0:00:00]} 2. Nf3 {[%emt 0:00:01]} Nf6 {[%emt 0:00:02]} 3. Nxe5 {[%emt 0:00:01]} d6 {[%emt 0:00:00]} 4. Nf3 {[%emt 0:00:01]} Nxe4 {[%emt 0:00:01]} 5. d4 {[%emt 0:00:01]} d5 {[%emt 0:00:02]} 6. Bd3 {[%emt 0:00:01]} Be7 {[%emt 0:00:05]} 7. O-O {[%emt 0:00:03]} Bf5 {[%emt 0:00:03]} 8. c4 {[%emt 0:00:06]} Nc6 {[%emt 0:01:07]} 9. Nc3 {[%emt 0:01:48]} Nxc3 {[%emt 0:00:08]} 10. bxc3 {[%emt 0:00:00]} Bxd3 {[%emt 0:00:05]} 11. Qxd3 {[%emt 0:00:01]} dxc4 {[%emt 0:00:06]} 12. Qxc4 {[%emt 0:00:02]} O-O {[%emt 0:00:02]} 13. Rb1 {[%emt 0:00:08]} Bd6 {[%emt 0:00:15]} 14. Qd3 {[%emt 0:00:14]} b6 {[%emt 0:02:13]} 15. Ng5 {[%emt 0:00:02]} g6 {[%emt 0:00:01]} 16. Qh3 {[%emt 0:00:01]} h5 {[%emt 0:00:07]} 17. g4 {[%emt 0:00:29]} Be7 {[%emt 0:01:02]} 18. Rb5 {[%emt 0:01:35]} Qd7 {[%emt 0:01:34]} 19. gxh5 {[%emt 0:00:10]} Qxh3 {[%emt 0:00:02]} 20. Nxh3 {[%emt 0:00:02]} a6 {[%emt 0:00:01]} 21. Rd5 {[%emt 0:00:05]} Rad8 {[%emt 0:00:08]} 22. Rxd8 {[%emt 0:00:06]} Rxd8 {[%emt 0:00:01]} 23. hxg6 {[%emt 0:00:02]} fxg6 {[%emt 0:00:01]} 24. Re1 {[%emt 0:00:19]} Kf7 {[%emt 0:00:32]} 25. Nf4 {[%emt 0:00:43]} Bd6 {[%emt 0:00:29]} 26. Ne6 {[%emt 0:00:21]} Rh8 {[%emt 0:00:21]} 27. Bf4 {[%emt 0:00:28]} Bxf4 {[%emt 0:01:03]} 28. Nxf4 {[%emt 0:00:02]} Nd8 {[%emt 0:00:04]} 29. Kg2 {[%emt 0:00:27]} g5 {[%emt 0:00:05]} 30. Nd3 {[%emt 0:00:13]} Kf6 {[%emt 0:00:07]} 31. f4 {[%emt 0:00:21]} Ne6 {[%emt 0:00:22]} 32. fxg5+ {[%emt 0:00:01]} Nxg5 {[%emt 0:00:01]} 33. Re3 {[%emt 0:00:59]} Ne6 {[%emt 0:00:11]} 34. d5 {[%emt 0:00:22]} ({White should try} 34. Rf3+ $16 Ke7 35. Ne5 Rg8+ 36. Kf2) 34... Ng7 {[%emt 0:00:05]} 35. Re4 {[%emt 0:00:30]} Nf5 {[%emt 0:00:06]} 36. Re6+ {[%emt 0:00:01]} Kg5 {[%emt 0:00:02]} 37. Ne5 {[%emt 0:00:17]} (37. Nf2 $1 $14) 37... Ne3+ $11 {[%emt 0:00:13]} 38. Kf3 {[%emt 0:00:02]} Nxd5 {[%emt 0:00:15]} 39. Nf7+ $1 {[%emt 0:00:25]} Kf5 {[%emt 0:00:01]} 40. Re5+ {[%emt 0:00:01]} Kf6 {[%emt 0:00:01]} 41. Rxd5 {[%emt 0:00:01]} Kxf7 {[%emt 0:00:02]} 42. Kg3 {[%emt 0:00:02]} Ke6 {[%emt 0:00:05]} 43. Rd4 {[%emt 0:00:09]} c5 {[%emt 0:00:05]} 44. Ra4 {[%emt 0:00:04]} Rg8+ {[%emt 0:00:03]} 45. Kf3 {[%emt 0:00:02]} Rh8 {[%emt 0:00:03]} 46. h4 {[%emt 0:00:03]} a5 {[%emt 0:00:05]} 47. Re4+ {[%emt 0:00:04]} Kf5 {[%emt 0:00:02]} 48. a4 {[%emt 0:00:07]} Rd8 {[%emt 0:00:03]} 49. Rf4+ {[%emt 0:00:04]} Kg6 {[%emt 0:00:01]} 50. Kg4 {[%emt 0:00:04]} Rd6 {[%emt 0:00:03]} 51. Re4 {[%emt 0:00:14]} Kh6 {[%emt 0:00:04]} 52. Kf5 {[%emt 0:00:06]} Rd3 {[%emt 0:00:01]} 53. Rc4 {[%emt 0:00:07]} Kh5 {[%emt 0:00:02]} 54. Ke4 {[%emt 0:00:01]} Rd1 {[%emt 0:00:02]} 55. Ke3 {[%emt 0:00:04]} Rd8 {[%emt 0:00:02]} 56. Rf4 {[%emt 0:00:02]} Rd6 {[%emt 0:00:02]} 57. Ke4 {[%emt 0:00:02]} Rd1 {[%emt 0:00:01]} 58. Ke5 {[%emt 0:00:04]} Rd2 {[%emt 0:00:03]} 59. Rf6 {[%emt 0:00:04]} Rb2 $1 {[%emt 0:00:02]} 60. Kd5 {[%emt 0:00:01]} Kxh4 {[%emt 0:00:02]} 61. Kc4 {[%emt 0:00:03]} Kg5 {[%emt 0:00:01]} 62. Rf1 {[%emt 0:00:01]} Kg4 {[%emt 0:00:02]} 63. Kd5 {[%emt 0:00:01]} Rb3 {[%emt 0:00:02]} 64. Rc1 {[%emt 0:00:02]} Kf4 {[%emt 0:00:02]} 65. Kc4 {[%emt 0:00:01]} Rb2 {[%emt 0:00:01]} 66. Re1 {[%emt 0:00:01]} Kf5 {[%emt 0:00:02]} 67. Kd5 {[%emt 0:00:01]} Rb3 {[%emt 0:00:01]} 68. c4 {[%emt 0:00:02]} Rb4 {[%emt 0:00:01]} 69. Rf1+ {[%emt 0:00:01]} Kg5 {[%emt 0:00:02]} 70. Kc6 {[%emt 0:00:02]} Rxa4 {[%emt 0:00:02]} 71. Kxb6 {[%emt 0:00:01]} Rxc4 {[%emt 0:00:01]} 72. Kxa5 {[%emt 0:00:01]} 1/2-1/2

[Event "CCT Final-RR 2024"]
[Site "Oslo"]
[Date "2024.12.18"]
[Round "6"]
[White "Lazavik, Denis"]
[Black "So, Wesley"]
[Result "1/2-1/2"]
[ECO "D63"]
[WhiteElo "2578"]
[BlackElo "2747"]
[Annotator "TA"]
[PlyCount "72"]
[EventDate "2024.12.11"]
[EventType "tourn"]
[EventCountry "NOR"]
[SourceTitle "playchess.com"]
[Source "ChessBase"]
[SourceQuality "1"]
[TimeControl "600+2"]

{[%evp 21,72,27,25,22,105,110,103,104,110,112,119,111,119,89,111,117,121,117,126,112,110,102,119,87,112,63,108,58,60,60,72,23,18,17,18,0,0,0,18,0,63,63,58,58,66,0,0,0,0,0,0,0,0]} 1. d4 {[%emt 0:00:02]} Nf6 {[%emt 0:00:01]} 2. c4 {[%emt 0:00:02]} e6 {[%emt 0:00:01]} 3. Nf3 {[%emt 0:00:02]} d5 {[%emt 0:00:01]} 4. Nc3 {[%emt 0:00:04]} Nbd7 {[%emt 0:00:10]} 5. Bg5 {[%emt 0:00:13]} h6 {[%emt 0:00:09]} 6. Bh4 {[%emt 0:00:02]} Be7 {[%emt 0:00:04]} 7. e3 {[%emt 0:00:07]} O-O {[%emt 0:00:02]} 8. Rc1 {[%emt 0:00:05]} a6 {[%emt 0:00:06]} 9. cxd5 {[%emt 0:00:20]} exd5 {[%emt 0:00:02]} 10. Bd3 {[%emt 0:00:02]} Re8 {[%emt 0:00:06]} 11. O-O {[%emt 0:00:02]} c6 {[%emt 0:00:02]} 12. Bg3 {[%emt 0:00:13]} Nh5 {[%emt 0:00:12] [#]} (12... Bf8 $11 {keeps the balance.}) 13. Nxd5 $1 $16 {[%emt 0:00:05][%mdl 512] White is more active.} Nxg3 {[%emt 0:00:55]} (13... cxd5 $2 {perishes.} 14. Bc7 $18) 14. Nxe7+ {[%emt 0:00:02] White is better.} Qxe7 {[%emt 0:00:01]} 15. hxg3 {[%emt 0:00:02]} ({Much worse is} 15. fxg3 $6 Qxe3+ 16. Kh1 Qe7 $14) 15... Nf6 {[%emt 0:00:01]} 16. Qc2 {[%emt 0:00:15]} Be6 {[%emt 0:00:03]} 17. Bc4 {[%emt 0:00:04]} Nd5 {[%emt 0:00:11]} 18. a3 {[%emt 0:00:08]} Rad8 {[%emt 0:00:03]} 19. Rfe1 {[%emt 0:00:09]} Nc7 {[%emt 0:00:12]} 20. Bxe6 {[%emt 0:00:13]} Nxe6 {[%emt 0:00:02]} 21. Rcd1 {[%emt 0:00:03]} Ng5 {[%emt 0:00:31]} 22. Nxg5 {[%emt 0:00:16]} hxg5 {[%emt 0:00:02]} 23. Qb3 {[%emt 0:00:32]} ({White should try} 23. g4 $16) 23... Rd7 {[%emt 0:00:26]} 24. d5 {[%emt 0:00:13]} ({White should play} 24. g4 $16) 24... cxd5 $14 {[%emt 0:00:17]} 25. Rxd5 {[%emt 0:00:02]} Qe6 {[%emt 0:00:01]} 26. Rd3 {[%emt 0:00:08]} (26. Red1 $16) 26... Qxb3 $11 {[%emt 0:00:10]} 27. Rxb3 {[%emt 0:00:01][%mdl 4096] Endgame. KRR-KRR} Rc8 {[%emt 0:00:01] Wards off Rc1} 28. Rc3 {[%emt 0:00:55]} Rxc3 {[%emt 0:00:22]} 29. bxc3 {[%emt 0:00:01] KR-KR} Kf8 {[%emt 0:00:03]} 30. a4 {[%emt 0:00:23]} Ke7 {[%emt 0:00:26]} (30... Rc7 $11) 31. Kf1 $14 {[%emt 0:00:12]} Rc7 {[%emt 0:03:07]} 32. Rb1 {[%emt 0:00:07]} Ke8 {[%emt 0:00:29]} 33. Ke2 {[%emt 0:00:11]} (33. Rb3 $1 $14) 33... Rxc3 $11 {[%emt 0:00:02] The position is equal.} 34. Rxb7 {[%emt 0:00:01]} Rc4 {[%emt 0:00:01]} 35. Rb8+ {[%emt 0:00:07]} Ke7 {[%emt 0:00:01]} 36. Rb7+ {[%emt 0:00:01]} Ke8 {[%emt 0:00:01] Weighted Error Value: White=0.15 (very precise) /Black=0.16 (very precise) .  Mistake:       	White=4     	Black=2      Inaccurate:     	---       	Black=1      OK:         	White=5     	Black=12     Best:        	White=2     	Black=1      Brilliant:      	White=1     	---} 1/2-1/2

[Event "CCT Final-RR 2024"]
[Site "Oslo"]
[Date "2024.12.19"]
[Round "7"]
[White "Carlsen, Magnus"]
[Black "Lazavik, Denis"]
[Result "1-0"]
[ECO "B30"]
[WhiteElo "2831"]
[BlackElo "2578"]
[Annotator "TA"]
[PlyCount "111"]
[EventDate "2024.12.11"]
[EventType "tourn"]
[EventCountry "NOR"]
[SourceTitle "playchess.com"]
[Source "ChessBase"]
[SourceQuality "1"]
[TimeControl "600+2"]

{[%evp 11,111,0,29,24,37,31,14,21,11,12,13,20,18,21,16,17,25,15,29,11,16,8,22,27,26,24,55,41,55,60,62,52,52,57,52,50,56,45,45,0,0,0,0,0,8,0,4,0,0,0,0,0,0,0,0,0,0,0,0,0,0,0,0,0,0,-8,-8,-8,0,0,0,0,0,0,0,0,0,0,0,0,0,0,2,2,245,245,245,245,29958,29965,29968,29967,29977,29967,29976,29977,29977,29977,29978,29979,29979,29980]} 1. e4 {[%emt 0:00:03]} c5 {[%emt 0:00:03]} 2. Nf3 {[%emt 0:00:02]} Nc6 {[%emt 0:00:02]} 3. Bb5 {[%emt 0:00:03]} e6 {[%emt 0:00:02]} 4. Bxc6 {[%emt 0:00:48]} bxc6 {[%emt 0:00:02]} 5. b3 {[%emt 0:00:04]} f6 {[%emt 0:00:06]} 6. O-O {[%emt 0:00:46]} Nh6 {[%emt 0:00:11]} 7. c3 {[%emt 0:00:45]} Nf7 {[%emt 0:00:24]} 8. d4 {[%emt 0:01:00]} cxd4 {[%emt 0:00:43]} 9. cxd4 {[%emt 0:00:02]} c5 {[%emt 0:00:16]} 10. d5 {[%emt 0:00:13]} Bd6 {[%emt 0:00:09]} 11. Na3 {[%emt 0:00:28]} Ba6 {[%emt 0:00:31]} 12. Nc4 {[%emt 0:00:12]} Bxc4 {[%emt 0:00:17]} 13. bxc4 {[%emt 0:00:01]} O-O {[%emt 0:00:04]} 14. Rb1 {[%emt 0:00:27]} Qc7 {[%emt 0:00:48]} 15. Be3 {[%emt 0:00:14]} Rab8 {[%emt 0:00:26]} 16. Qd3 {[%emt 0:00:14]} Rxb1 {[%emt 0:00:37]} 17. Rxb1 {[%emt 0:00:02]} Rb8 {[%emt 0:00:02]} 18. Rb3 {[%emt 0:00:01]} Rb6 {[%emt 0:00:08]} 19. g3 {[%emt 0:00:07]} Ne5 {[%emt 0:02:09]} 20. Nxe5 {[%emt 0:00:02]} Bxe5 {[%emt 0:00:01]} 21. Kg2 {[%emt 0:00:32]} Rxb3 {[%emt 0:01:18]} 22. axb3 $14 {[%emt 0:00:01][%mdl 4096] Endgame KQB-KQB} h6 {[%emt 0:00:55]} 23. f4 {[%emt 0:00:10]} Bd6 {[%emt 0:00:01]} 24. dxe6 {[%emt 0:00:02]} dxe6 {[%emt 0:00:01]} 25. f5 {[%emt 0:00:01]} exf5 {[%emt 0:00:12]} 26. Qd5+ {[%emt 0:00:03]} Kh8 {[%emt 0:00:13]} 27. exf5 {[%emt 0:00:02]} Bf8 {[%emt 0:00:10]} 28. Kh3 {[%emt 0:00:50]} Qe7 {[%emt 0:00:22]} 29. Bf4 {[%emt 0:00:16]} Qe2 {[%emt 0:00:21]} 30. Qe6 {[%emt 0:00:25] Active counter play!} Qh5+ {[%emt 0:00:22]} 31. Kg2 {[%emt 0:00:01]} Qd1 {[%emt 0:00:02]} 32. Qf7 {[%emt 0:01:49][%csl LRa7,LRf8]} Qe2+ {[%emt 0:00:01]} 33. Kh3 {[%emt 0:00:04]} Be7 {[%emt 0:00:01]} 34. Qe6 {[%emt 0:00:59]} Qxe6 {[%emt 0:00:01]} 35. fxe6 $11 {[%emt 0:00:01] Kg4 is the strong threat. KB-KB} Kh7 {[%emt 0:00:01]} 36. g4 {[%emt 0:00:04]} g5 {[%emt 0:00:03]} 37. Bb8 {[%emt 0:00:06]} Kg6 {[%emt 0:00:02]} 38. Kg2 {[%emt 0:00:13]} f5 {[%emt 0:00:02]} 39. h3 {[%emt 0:00:02]} (39. gxf5+ {simplifies} Kxf5 40. Bxa7 Kxe6 41. Kf3) 39... fxg4 {[%emt 0:00:07]} 40. hxg4 {[%emt 0:00:00]} Kf6 {[%emt 0:00:01] Prevents Be5+} 41. Bxa7 {[%emt 0:00:02]} Kxe6 {[%emt 0:00:01]} 42. Kf3 {[%emt 0:00:02]} Ke5 {[%emt 0:00:03]} 43. Ke3 {[%emt 0:00:01]} Bd6 {[%emt 0:00:00]} 44. Bb6 {[%emt 0:00:02]} Ke6 {[%emt 0:00:04]} 45. Ke4 {[%emt 0:00:01]} Be7 {[%emt 0:00:02]} 46. Ba5 {[%emt 0:00:05]} Bf6 {[%emt 0:00:01]} 47. Bd2 {[%emt 0:00:02]} Bg7 $2 {[%emt 0:00:04] [#]} (47... Be7 $11) 48. b4 $1 $18 {[%emt 0:00:02]} cxb4 {[%emt 0:00:01]} 49. Bxb4 {[%emt 0:00:01]} Be5 $2 {[%emt 0:00:03]} (49... Kf7 $18 50. Kd5 Bf6) 50. Bf8 {[%emt 0:00:01]} Bf4 {[%emt 0:00:02]} 51. Bxh6 {[%emt 0:00:02]} Kd6 {[%emt 0:00:01]} 52. Bf8+ {[%emt 0:00:01]} Kc6 {[%emt 0:00:02]} 53. Kf5 {[%emt 0:00:01]} Be3 {[%emt 0:00:02]} 54. Be7 {[%emt 0:00:01]} Bd2 {[%emt 0:00:03]} 55. Bxg5 {[%emt 0:00:02]} Bb4 {[%emt 0:00:03]} 56. Be3 {[%emt 0:00:01]} 1-0

[Event "CCT Final-RR 2024"]
[Site "Oslo"]
[Date "2024.12.19"]
[Round "7"]
[White "Firouzja, Alireza"]
[Black "Keymer, Vincent"]
[Result "1/2-1/2"]
[ECO "A07"]
[WhiteElo "2763"]
[BlackElo "2733"]
[Annotator "TA"]
[PlyCount "190"]
[EventDate "2024.12.11"]
[EventType "tourn"]
[EventCountry "NOR"]
[SourceTitle "playchess.com"]
[Source "ChessBase"]
[SourceQuality "1"]
[TimeControl "600+2"]

{[%evp 19,190,9,12,10,24,0,0,0,0,0,-3,-8,0,-16,0,-10,-7,-84,-63,-85,-86,-143,-162,-157,-162,-171,-119,-95,-112,-108,-127,-116,-63,-64,-18,-16,-18,-42,-16,-19,-24,-102,-99,-123,0,0,0,0,0,0,0,0,0,-16,0,-29,-25,-35,-15,-13,-14,-20,-17,-21,0,-7,0,-25,0,-13,0,0,0,0,0,0,8,0,12,8,10,8,22,19,25,0,24,8,34,0,0,0,0,0,0,0,0,0,0,0,0,0,56,56,56,56,56,56,56,56,56,56,77,56,58,58,58,58,58,56,58,56,58,56,56,0,56,56,58,58,58,57,58,44,44,8,137,137,137,137,137,137,154,0,0,0,0,0,0,0,0,0,0,0,0,0,0,0,0,0,0,0,0,0,0,0,0,0,0,0,0,0,0]} 1. Nf3 {[%emt 0:00:01]} d5 {[%emt 0:00:01]} 2. b3 {[%emt 0:00:01]} Nf6 {[%emt 0:00:04]} 3. Bb2 {[%emt 0:00:01]} Bf5 {[%emt 0:00:02]} 4. g3 {[%emt 0:00:10]} e6 {[%emt 0:00:04]} 5. Bg2 {[%emt 0:00:01]} h6 {[%emt 0:00:01]} 6. O-O {[%emt 0:00:04]} Be7 {[%emt 0:00:01]} 7. d3 {[%emt 0:00:04]} O-O {[%emt 0:00:03]} 8. Nbd2 {[%emt 0:00:02]} c6 {[%emt 0:00:05]} 9. Re1 {[%emt 0:00:03]} Bh7 {[%emt 0:00:02]} 10. e4 {[%emt 0:00:03]} a5 {[%emt 0:00:09]} 11. a4 {[%emt 0:00:09]} Nbd7 {[%emt 0:00:44]} 12. exd5 {[%emt 0:00:54]} Nxd5 {[%emt 0:00:49]} 13. Nc4 {[%emt 0:00:11]} Bb4 {[%emt 0:00:16]} 14. Nfd2 {[%emt 0:00:44]} Qc7 {[%emt 0:01:04]} 15. Qc1 {[%emt 0:01:33]} Nc3 {[%emt 0:00:44]} 16. Ne3 {[%emt 0:01:08]} Rae8 {[%emt 0:00:21]} 17. Nd1 {[%emt 0:00:10]} Nd5 {[%emt 0:00:08]} 18. Re2 {[%emt 0:00:18]} (18. Ne3 $11) 18... e5 {[%emt 0:00:16]} 19. Nc4 {[%emt 0:00:05]} f5 {[%emt 0:00:16]} 20. Ba3 {[%emt 0:00:31]} (20. c3 $142 Bc5 21. d4) 20... f4 $17 {[%emt 0:00:08]} 21. Bxb4 {[%emt 0:00:22]} axb4 {[%emt 0:00:01]} (21... Nxb4 22. Rd2 $17) 22. Re1 {[%emt 0:00:07]} N7f6 {[%emt 0:00:22]} (22... Nc5 $19 {Threatens to win with ...e4.} 23. a5 e4 24. dxe4 Bxe4 (24... Nxe4 25. Ndb2 $17)) 23. Nd2 {[%emt 0:00:59]} Qb6 {[%emt 0:00:04]} 24. a5 {[%emt 0:00:21]} Qc5 {[%emt 0:00:07]} 25. Ne4 {[%emt 0:01:23] Inhibits Nc3.} Bxe4 {[%emt 0:00:47]} (25... Nxe4 $17 26. dxe4 Nc3 27. Nxc3 fxg3 (27... Qxc3 $2 28. Bf1 $19) (27... bxc3 28. Qa3 $15) 28. hxg3 Qxf2+ (28... Qxc3 29. Re3 $14) 29. Kh2 bxc3) 26. dxe4 $15 {[%emt 0:00:19]} Nc3 {[%emt 0:00:15]} (26... Nc7 $15 27. Nb2 fxg3 28. hxg3 Nb5) 27. Nxc3 $11 {[%emt 0:00:34]} Qxc3 {[%emt 0:00:18]} 28. gxf4 {[%emt 0:00:03]} exf4 {[%emt 0:00:45]} 29. Qxf4 {[%emt 0:00:00]} Qxc2 {[%emt 0:00:36]} 30. Qe3 {[%emt 0:00:18]} (30. e5 $11 Nh5 31. Qd4) 30... Nd5 $1 $17 {[%emt 0:00:27]} (30... Ng4 31. Qe2 Qxe2 32. Rxe2) 31. Qe2 {[%emt 0:00:01] [#]} Qxb3 {[%emt 0:00:05]} (31... Qc5 $1 $17 32. Qc4 Qxc4 (32... Qxf2+ 33. Kh1 $17) 33. bxc4 Nf4) 32. Rab1 $1 $11 {[%emt 0:00:01]} Qc3 {[%emt 0:01:07]} 33. Qa2 $1 {[%emt 0:00:11]} Rf7 {[%emt 0:00:32]} 34. Rec1 {[%emt 0:00:04][%cal Oe4d5]} (34. Rbc1 $5 b3 $8 35. Qb1 $11 (35. exd5 Rxe1+ 36. Bf1 Qxc1 37. Qxb3 Rxf1+ 38. Kg2 R1xf2+ 39. Kh3 Qg5 40. Qg3 Qh5+ 41. Qh4 R7f3#)) 34... b3 {[%emt 0:00:01]} 35. Qxb3 {[%emt 0:00:07]} (35. exd5 $2 bxa2 36. Ra1 Qd2 $19 (36... Qxa5 $2 37. Bf1 $19)) 35... Qxb3 {[%emt 0:00:01]} 36. Rxb3 {[%emt 0:00:01]} Nf4 {[%emt 0:00:01]} 37. Re1 {[%emt 0:00:07] Against Ne2+} Re5 {[%emt 0:00:01]} 38. Bf1 {[%emt 0:00:01]} Kh7 {[%emt 0:00:05]} (38... Rxa5 39. Bc4 b5 (39... Rg5+ $2 40. Kf1 $18) 40. Bxf7+ Kxf7 41. Rc3 $14) 39. a6 {[%emt 0:00:03]} bxa6 {[%emt 0:00:08]} 40. Bxa6 {[%emt 0:00:00]} Rf6 {[%emt 0:00:05]} 41. Bf1 {[%emt 0:00:02]} Ne6 {[%emt 0:00:09]} 42. Kg2 {[%emt 0:00:03]} Nf4+ {[%emt 0:00:05]} 43. Kg1 {[%emt 0:00:01]} Ne6 {[%emt 0:00:01]} 44. Kg2 $1 {[%emt 0:00:01]} Nd4 {[%emt 0:00:04]} 45. Rc3 {[%emt 0:00:05]} c5 {[%emt 0:00:03]} 46. f3 {[%emt 0:00:02]} Ne6 {[%emt 0:00:01]} 47. Kf2 {[%emt 0:00:01]} Nf4 {[%emt 0:00:01]} 48. Rec1 {[%emt 0:00:02]} Rc6 {[%emt 0:00:02]} 49. Kg3 {[%emt 0:00:03]} g5 {[%emt 0:00:04]} 50. h4 {[%emt 0:00:02]} Kg7 {[%emt 0:00:01]} 51. hxg5 {[%emt 0:00:01]} hxg5 {[%emt 0:00:00]} 52. Rd1 {[%emt 0:00:04]} Rc7 {[%emt 0:00:01]} 53. Rc2 {[%emt 0:00:01]} Kf6 {[%emt 0:00:02]} 54. Bc4 {[%emt 0:00:03]} Rh7 {[%emt 0:00:04]} 55. Rcd2 {[%emt 0:00:02]} Rh3+ {[%emt 0:00:02]} 56. Kg4 {[%emt 0:00:01]} Rh4+ {[%emt 0:00:01]} 57. Kg3 {[%emt 0:00:01] Active counter play!} Rh3+ {[%emt 0:00:02]} 58. Kf2 {[%emt 0:00:03]} (58. Kg4 $5 Rh4+ $8 59. Kg3 Rh3+ $11) 58... Rh2+ {[%emt 0:00:00]} 59. Ke3 {[%emt 0:00:01]} Rxd2 {[%emt 0:00:04]} 60. Rxd2 {[%emt 0:00:01][%mdl 4096] Endgame KRB-KRN} Ke7 {[%emt 0:00:04] Dodges Rd6} (60... Re8 $11) 61. Ra2 {[%emt 0:00:02]} Kf6 {[%emt 0:00:02]} 62. Ra6+ {[%emt 0:00:01]} Ke7 {[%emt 0:00:01]} 63. Kf2 {[%emt 0:00:02] Repels Ng2} Kf8 {[%emt 0:00:03]} 64. Kg3 {[%emt 0:00:01]} Kg7 {[%emt 0:00:02]} 65. Kg4 {[%emt 0:00:01]} Ng2 {[%emt 0:00:01]} 66. Ra3 {[%emt 0:00:05] Dodges Ne3+} Nf4 {[%emt 0:00:02]} 67. Ra7+ {[%emt 0:00:01]} Kg6 {[%emt 0:00:01]} 68. Ra6+ {[%emt 0:00:02]} Kg7 {[%emt 0:00:01]} 69. Ra2 {[%emt 0:00:02]} Kg6 {[%emt 0:00:01]} 70. Rd2 {[%emt 0:00:01]} Kg7 {[%emt 0:00:02]} 71. Bb5 {[%emt 0:00:02]} Kf6 {[%emt 0:00:03]} 72. Rd6+ {[%emt 0:00:04]} (72. Rd8 $14) 72... Kg7 {[%emt 0:00:01]} ({Black should play} 72... Re6 $11 73. Rd8 Rb6) 73. Rc6 {[%emt 0:00:04]} Ne6 {[%emt 0:00:04]} 74. Bc4 {[%emt 0:00:03]} Nf4 {[%emt 0:00:01]} 75. Ba6 {[%emt 0:00:01]} Ne6 {[%emt 0:00:05]} 76. Bc8 {[%emt 0:00:01]} Nd4 {[%emt 0:00:01]} 77. Rd6 {[%emt 0:00:03]} Ne2 {[%emt 0:00:02] [#]} (77... Kf7 $11 {remains equal.}) 78. Bf5 $1 $16 {[%emt 0:00:02]} Nd4 {[%emt 0:00:01]} 79. Kxg5 {[%emt 0:00:03]} Nxf5 {[%emt 0:00:03]} (79... Nxf3+ $2 {perishes.} 80. Kf4 $18) 80. exf5 {[%emt 0:00:03] Rd7+ would now be deadly. KR-KR. White is a pawn up.} Kf7 {[%emt 0:00:02]} 81. Rd7+ $2 {[%emt 0:00:01]} ({White should play} 81. Rc6 $16) 81... Re7 $11 {[%emt 0:00:01]} 82. Rd6 {[%emt 0:00:01]} Rc7 {[%emt 0:00:01] Dodges Rc6} 83. Rh6 {[%emt 0:00:01]} Kg8 $1 {[%emt 0:00:02] Prevents Rh7} 84. Rg6+ {[%emt 0:00:02]} Kf8 {[%emt 0:00:01]} 85. Rf6+ {[%emt 0:00:01]} Kg8 {[%emt 0:00:01]} 86. Rd6 {[%emt 0:00:02]} c4 {[%emt 0:00:00][%cal Bc5c4,Bc4c3][%mdl 32]} 87. f6 {[%emt 0:00:03] Kg6 would kill now.} (87. Kg6 $5 Rg7+ $8 88. Kf6 $11) 87... Kf7 {[%emt 0:00:03]} 88. Rd2 {[%emt 0:00:02]} c3 {[%emt 0:00:01]} 89. Rc2 {[%emt 0:00:01]} Rc5+ {[%emt 0:00:00]} 90. Kf4 {[%emt 0:00:01]} Kxf6 {[%emt 0:00:01]} 91. Ke3 {[%emt 0:00:00]} Kf5 {[%emt 0:00:03]} 92. Kd3 {[%emt 0:00:01]} Rc7 {[%emt 0:00:00]} 93. Rxc3 {[%emt 0:00:01]} Rxc3+ {[%emt 0:00:00]} 94. Kxc3 {[%emt 0:00:00]} Kf4 {[%emt 0:00:01]} 95. Kd3 {[%emt 0:00:01]} Kxf3 {[%emt 0:00:00]} 1/2-1/2